Cogmind - Beta 17 @@@ ROGUE MODE // 2026.07.13 @ 15:26:56 Player: Akl Result: Destroyed by G-47 Trooper with Particle Gun Performance ------------- Evolutions (2) 1000 Regions Visited (3) 600 Robots Destroyed (5) 25 Value Destroyed (120) 120 Prototype IDs (0) 0 Alien Tech Used (0) 0 Bonus (0) 0 TOTAL SCORE: 1745 Bonus ------- None Cogmind --------- Core Integrity 0/550 Matter 38/300 Energy 100/100 System Corruption 0% Temperature Cool (18) Movement Core (350) Ox6 Location -8/Materials Parts ------- > --- POWER (1) -------- (None) > --- PROPULSION (3) --- (None) > --- UTILITY (4) ------ Large Storage Unit Improved Terrain Scan Processor > --- WEAPON (3) ------- (None) > --- INVENTORY (15) --- Ion Engine Reaction Control System Improved Propulsion Shielding Light Armor Plating Shock Bomb Launcher Peak State ------------ > --- POWER ------------ Light Ion Engine > --- PROPULSION ------- Compact Wheel Compact Wheel > --- UTILITY ---------- Large Storage Unit Sensor Array Improved Terrain Scanner Improved Terrain Scan Processor > --- WEAPON ----------- Light Assault Rifle Heavy Assault Rifle Rocket Launcher > --- INVENTORY -------- Ion Engine Reaction Control System Improved Propulsion Shielding Light Armor Plating Hardened Medium Armor Plating [Rating: 17] Favorites ----------- Power Light Ion Engine Engine Light Ion Engine Propulsion Compact Wheel Wheel Compact Wheel Utility Improved Terrain Scan Processor Device Sensor Array Storage Large Storage Unit Processor Improved Terrain Scan Processor Protection Hardened Medium Armor Plating Weapon Light Assault Rifle Ballistic Gun Light Assault Rifle Launcher Rocket Launcher Build | -11 -10 -9 -8 ------- Run | Yrd Mat Mat Mat Slots Evolved 4 | . . 2 2 Power . | . . . . Propulsion 1 | . . 1 . Utility 2 | . . 1 1 Weapon 1 | . . . 1 Parts Attached 14 | 7 1 5 1 Power 2 | 2 . . . Engine 2 | 2 . . . Core . | . . . . Reactor . | . . . . Propulsion 2 | 2 . . . Treads . | . . . . Leg . | . . . . Wheel 2 | 2 . . . Hover . | . . . . Flight . | . . . . Utility 6 | 1 1 3 1 Device 2 | . . 2 . Storage 2 | 1 1 . . Processor 1 | . . 1 . Hackware . | . . . . Protection 1 | . . . 1 Artifact . | . . . . Weapon 4 | 2 . 2 . Energy Gun . | . . . . Energy Cannon . | . . . . Ballistic Gun 3 | 2 . 1 . Ballistic Cannon . | . . . . Launcher 1 | . . 1 . Special Weapon . | . . . . Impact Weapon . | . . . . Slashing Weapon . | . . . . Piercing Weapon . | . . . . Special Melee Weapon . | . . . . Unidentified Prototypes . | . . . . Parts Lost 9 | . . . 9 Power 1 | . . . 1 Propulsion 2 | . . . 2 Utility 3 | . . . 3 Weapon 3 | . . . 3 Highest Loss Streak 4 | . . . 4 To Critical Strikes . | . . . . Average Backups 3 | 1 2 4 4 Power . | . 1 1 1 Propulsion . | . . . . Utility 2 | . 1 2 2 Weapon . | . . . . Tool/Special . | . . . . Unused Backups 5 | . . . 5 Power . | . . . . Propulsion . | . . . . Utility 4 | . . . 4 Weapon 1 | . . . 1 Tool/Special . | . . . . Average Slot Usage (%) 74 | . 83 82 67 Engine 9 | . 14 11 7 Wheel 17 | . 28 22 12 Device 10 | . . 17 10 Storage 7 | . 12 2 8 Processor 7 | . . 8 9 Protection 1 | . . . 3 Ballistic Gun 17 | . 28 18 13 Launcher 2 | . . 2 3 Peak Build Rating 17 | 6 7 13 17 Average Rating 10 | 5 5 11 12 On Entrance 6 | . 6 6 13 Avg Prop Armor Cover (%) . | . . . . Naked Turns . | . . . . Heaviest Build 36 | 11 25 26 36 Greatest Support 32 | 32 32 32 32 Greatest Overweight (x) 6 | . . . 6 Average Overweight (x) . | . . . 1 Largest Inventory Capacity 15 | 8 15 15 15 Average Capacity 11 | 7 12 7 14 Most Carried 6 | 3 5 5 6 Average Carried 3 | 1 2 4 4 Final Capacity 15 | 8 15 5 15 Final Carried 5 | 2 3 5 5 Class Distribution -------------------- 67% | Mutant 32% | Skirmisher Dominant Class ---------------- Mutant | -10/Materials Skirmisher | -9/Materials Mutant | -8/Materials Resources | -11 -10 -9 -8 ----------- Run | Yrd Mat Mat Mat Matter Collected 247 | 194 . 53 . Remotely . | . . . . Salvage Created 130 | 20 . 110 . Parts 15 | 2 . 13 . Haulers Intercepted . | . . . . Recyclers Shooed . | . . . . Parts Field Recycled . | . . . . Retrieved Matter . | . . . . Parts Self-Destructed . | . . . . Prevented . | . . . . Parts Restored . | . . . . Kills | -11 -10 -9 -8 ------- Run | Yrd Mat Mat Mat Combat Hostiles Destroyed 2 | . . 2 . Guns 1 | . . 1 . AOE 1 | . . 1 . Classes Destroyed 5 | 1 . 4 . Builder 1 | . . 1 . Tunneler 1 | 1 . . . Watcher 1 | . . 1 . Duelist 1 | . . 1 . Sentry 1 | . . 1 . Best Kill Streak 4 | 1 . 4 . Combat Bots Only 2 | . . 2 . Max Kills in Single Turn 2 | 1 . 2 . Gunslinging . | . . . . Exploded 1 | . . 1 . Melee . | . . . . Uniques/NPCs Destroyed . | . . . . Combat | -11 -10 -9 -8 -------- Run | Yrd Mat Mat Mat Hostile Shots Fired 150 | . 4 11 135 Missed 50 | . 2 2 46 Hits 100 | . 2 9 89 Projectile 100 | . 2 9 89 Critical Strikes 6 | . . . 6 Damage Taken 1471 | . 22 163 1286 Core 646 | . . 87 559 Absorbed by Shields . | . . . . Core Remaining (%) 92 | 100 100 78 . Volleys Fired 26 | 9 . 5 12 Largest 2 | 2 . 2 2 Hottest 43 | 40 . 40 43 Shots Fired 45 | 18 . 7 20 Gun 38 | 18 . 4 16 Cannon . | . . . . Launcher 7 | . . 3 4 Special . | . . . . Kinetic 38 | 18 . 4 16 Thermal . | . . . . Explosive 7 | . . 3 4 Electromagnetic . | . . . . Robot Hit Streak 13 | 7 . 13 4 Robot Miss Streak 3 | 3 . . 1 Penetration Max . | . . . . Secondary Targets . | . . . . Shots Hit Robots 28 | 13 . 6 9 Core Hits 13 | 2 . 7 4 Critical Kills . | . . . . Critical Parts Destroyed . | . . . . Critical Strikes . | . . . . Melee Attacks . | . . . . Impact . | . . . . Slashing . | . . . . Piercing . | . . . . Sneak Attacks . | . . . . Combat Hostiles . | . . . . Follow-up Attacks . | . . . . Damage Inflicted 636 | 99 . 336 201 Guns 275 | 99 . 33 143 Cannons . | . . . . Explosions 356 | . . 303 53 Melee . | . . . . Ramming 5 | . . . 5 Kinetic 275 | 99 . 33 143 Thermal . | . . . . Explosive 356 | . . 303 53 Electromagnetic . | . . . . Impact . | . . . . Slashing . | . . . . Piercing . | . . . . Highest Corruption 1 | . 1 . . Average Corruption 1 | . 1 . . Corruption Purged . | . . . . Corruption Blocked . | . . . . Overload Shots . | . . . . Overflow Damage 11 | . . 11 . Projectiles . | . . . . Explosions 11 | . . 11 . Melee . | . . . . Knockbacks . | . . . . Impact . | . . . . Kinetic . | . . . . Secondary . | . . . . Self-Inflicted Damage 50 | . . 48 2 Shots 1 | . . 1 . Rammed 2 | . . . 2 Targets Rammed 2 | . . . 2 Kicked . | . . . . Crushed . | . . . . Highest Temperature 18 | . . 2 18 Average Temperature 7 | . . 2 8 Received Heat Transfer 771 | . 12 48 711 Siege Activations . | . . . . Martial Activations . | . . . . Shielding Activations . | . . . . Robots Disrupted . | . . . . Combat Hostiles . | . . . . Robots Corrupted . | . . . . Combat Hostiles . | . . . . Parts Fried . | . . . . Impact Corruptions . | . . . . Robots Melted . | . . . . Combat Hostiles . | . . . . Parts Melted . | . . . . Heat Transferred . | . . . . Parts Sabotaged . | . . . . Parts Stolen . | . . . . Parts Stripped . | . . . . Power Chain Reactions . | . . . . Alert | -11 -10 -9 -8 ------- Run | Yrd Mat Mat Mat Maximum Alert Level . | . . . . Low Security (%) 100 | 100 100 100 100 Level 1 . | . . . . Level 2 . | . . . . Level 3 . | . . . . Level 4 . | . . . . Level 5 . | . . . . High Security . | . . . . Max Security . | . . . . Peak Influence 95 | 5 15 95 65 Initial 35 | . . . 35 Average 13 | . 3 20 18 Influence Increases 263 | 5 15 105 138 Destroy 0b10 Robot/C 40 | . . 40 . Destroy 0b10 Robot/NC 15 | 5 . 10 . Destroy Leader 22 | . . 22 . Destroy Structure 66 | . . 33 33 Partial Spotted 15 | . 15 . . Lose Combat Pursuer 105 | . . . 105 Influence Decreases 218 | 5 15 20 178 Entered New Map 50 | . . . 50 Time Decay 130 | 5 15 20 90 Lost Part 38 | . . . 38 Squads Dispatched 2 | . . . 2 Investigation . | . . . . Extermination . | . . . . Reinforcement 2 | . . . 2 Assault . | . . . . Garrison . | . . . . Intercept . | . . . . Searches Triggered . | . . . . Construction Impeded . | . . . . Haulers Reinforced . | . . . . Active Scanning Responses . | . . . . Cargo Convoy Interrupts . | . . . . Stealth | -11 -10 -9 -8 --------- Run | Yrd Mat Mat Mat Distress Signals 5 | . . . 5 Communications Jammed . | . . . . Distress Signals . | . . . . Times Spotted 33 | . 3 5 25 Peak Tracking Total 19 | . 3 3 19 Tactical Retreats 3 | . . . 3 Traps | -11 -10 -9 -8 ------- Run | Yrd Mat Mat Mat Traps Triggered 2 | . 1 . 1 Indirectly . | . . . . Trap Hack Attempts . | . . . . Triggered . | . . . . Disarmed . | . . . . Reprogrammed . | . . . . Reused . | . . . . Traps Extracted . | . . . . Installed . | . . . . Triggered . | . . . . Machines | -11 -10 -9 -8 ---------- Run | Yrd Mat Mat Mat Machines Disabled . | . . . . Max in Single Turn . | . . . . Machines Repaired . | . . . . Machines Dismantled . | . . . . Machines Sabotaged . | . . . . Overloaded Fab Kills . | . . . . Hacking | -11 -10 -9 -8 --------- Run | Yrd Mat Mat Mat Machines Accessed 1 | . . . 1 Terminals 1 | . . . 1 Fabricators . | . . . . Repair Stations . | . . . . Recycling Units . | . . . . Scanalyzers . | . . . . Garrison Access . | . . . . Total Hacks 3 | . . . 3 Successful 1 | . . . 1 Failed 2 | . . . 2 Catastrophic 1 | . . . 1 Database Lockouts . | . . . . Manual . | . . . . Terminals 3 | . . . 3 Fabricators . | . . . . Repair Stations . | . . . . Recycling Units . | . . . . Scanalyzers . | . . . . Garrison Access . | . . . . Terminal Hacks 1 | . . . 1 Record 1 | . . . 1 Fabricator Hacks . | . . . . Repair Station Hacks . | . . . . Recycling Unit Hacks . | . . . . Scanalyzer . | . . . . Garrison Access Hacks . | . . . . Unauthorized Hacks . | . . . . Terminals . | . . . . Fabricators . | . . . . Repair Stations . | . . . . Recycling Units . | . . . . Scanalyzers . | . . . . Garrison Access . | . . . . Data Cores Recovered . | . . . . Used . | . . . . Hacking Detections 1 | . . . 1 Full Trace Events . | . . . . Feedback Events . | . . . . Feedback Blocked . | . . . . Robot Schematics Acquired . | . . . . Robots Built . | . . . . Authchips . | . . . . Time . | . . . . Total Robot Build Rating . | . . . . Part Schematics Acquired . | . . . . Parts Built . | . . . . Authchips . | . . . . Time . | . . . . Total Part Build Rating . | . . . . Part Studies Acquired . | . . . . Parts Repaired . | . . . . Time . | . . . . Parts Recycled . | . . . . Recycled Matter . | . . . . Retrieved Matter . | . . . . Retrieved Components . | . . . . Parts Scanalyzed . | . . . . Part Schematics Acquired . | . . . . Parts Damaged . | . . . . Bothacking | -11 -10 -9 -8 ------------ Run | Yrd Mat Mat Mat Used RIF Installer . | . . . . Robots Hacked . | . . . . Non-combat . | . . . . Combat . | . . . . Robot Hacks Applied . | . . . . Relay Couplers Released . | . . . . Fabnet Peak Effective % . | . . . . Robots Rewired . | . . . . Allies Hacked . | . . . . Hacks Repelled . | . . . . Allies | -11 -10 -9 -8 -------- Run | Yrd Mat Mat Mat Total Allies . | . . . . Largest Group . | . . . . Highest-Rated Group . | . . . . Highest-Rated Ally . | . . . . Total Orders . | . . . . Ally Attacks . | . . . . Total Damage . | . . . . Kills . | . . . . Allies Corrupted . | . . . . Allies Melted . | . . . . Intel | -11 -10 -9 -8 ------- Run | Yrd Mat Mat Mat Active Infowar (turns) 391 | . . 134 257 Sensors 391 | . . 134 257 Terrain 226 | . . 108 118 Robot Analysis Total . | . . . . Derelict Logs Recovered . | . . . . Drone Launches . | . . . . Drone Recoveries . | . . . . Exploration | -11 -10 -9 -8 ------------- Run | Yrd Mat Mat Mat Turns Passed 661 | 116 87 142 316 Spaces Moved 467 | 71 75 101 220 Core 7 | 4 . . 3 Treads . | . . . . Legs . | . . . . Wheels 460 | 67 75 101 217 Hover . | . . . . Flight . | . . . . Fastest Speed 50 | 50 100 100 100 Average Speed 110 | 97 100 100 122 Slowest Speed 350 | 100 100 100 350 Overloaded Moves . | . . . . Propulsion Burnouts . | . . . . Robots Hopped . | . . . . Potential Cave-ins . | . . . . Cave-ins Triggered . | . . . . Exploration Rate (%) 16 | 4 20 12 30 Regions Visited 3 Branch Regions . Pre-discovered Areas . | . . . . Known Exits Taken . | . . . . Unknown Exits Taken 3 | 1 1 1 . Scrap Searched . | . . . . Spaces Dug . | . . . . Terrain Destroyed 72 | . . 39 33 Melee . | . . . . Projectile . | . . . . AOE 72 | . . 39 33 Terrain Rammed . | . . . . Walls Destroyed . | . . . . Machines Disabled . | . . . . Actions | -11 -10 -9 -8 --------- Run | Yrd Mat Mat Mat Total 574 | 101 88 135 250 Wait 38 | 7 5 18 8 Move 464 | 70 74 100 220 Hop . | . . . . Pick Up 9 | 2 1 2 4 Fast Attach 10 | 6 1 3 . Attach 10 | 3 3 1 3 Detach 8 | 3 3 2 . Swap 3 | 1 . 2 . Drop 4 | . 1 2 1 Fire 26 | 9 . 5 12 Melee . | . . . . Ram 2 | . . . 2 Kick . | . . . . Crush . | . . . . Escape Stasis . | . . . . Rewire . | . . . . Trap . | . . . . Miscellaneous . | . . . . Route ------- -11/Scrapyard -10/Materials -9/Materials -8/Materials History --------- Turn | Location | Event 19 | -11/Scrapyard | Discovered new exit (range 16) 117 | -11/Scrapyard | Entered Materials 188 | -10/Materials | Discovered new exit (range 14) 204 | -10/Materials | Entered another Materials area 204 | -9/Materials | Evolved 2 slots: Propulsion x1, Utility x1 333 | -9/Materials | Discovered new exit (range 10) 346 | -9/Materials | Entered another Materials area 346 | -8/Materials | Evolved 2 slots: Utility x1, Weapon x1 518 | -8/Materials | Lost 3 parts (1n1u1w) 625 | -8/Materials | Core integrity fell below 50% 639 | -8/Materials | Lost 4 parts (1p2u1w) 658 | -8/Materials | Core integrity fell below 20% 662 | -8/Materials | Destroyed by G-47 Trooper with Particle Gun Last Messages --------------- 00607_ Lgt. Ion Engine destroyed. 00608_ Hvy. Assault Rifle destroyed. 00608_ W-25 Informer sends out distress signal. 00609_ U-05 Engineer lays Concrete. 00610_ U-05 Engineer builds a Wall. 00611_ ALERT: Hostiles spotted, dispatching reinforcements to Terminal M011. 00614_ U-05 Engineer lays Concrete. 00614_ C-30 ARC bursts open, deploying its payload. 00614_ S-10 Pest unfolds itself. 00615_ U-05 Engineer builds a Wall. 00628_ W-25 Informer sends out distress signal. 00643_ S-10 Pest destroyed. 00645_ W-25 Informer sends out distress signal. 00649_ Slammed into S-10 Pest. 00653_ Com. Wheel destroyed. 00654_ S-10 Pest destroyed. 00657_ Critical hit (Burn: +37). 00660_ W-25 Informer sends out distress signal. Map ----- +----------------------------------------------------+ | ???????????????????????????????????????????????? | | ???????????????????????????????????????????????? | | ???????????????????????????????????????????????? | | ???????????????????????????????????????????????? | | ???????????????????????????????????????????????? | | ???????????????????????????????????????????????? | | ???????????????????????????????????????????????? | | ???????????????????????????????????????????????? | | ???????????????????????????????????????????????? | | ???????????????????????????????????????????????? | | ???????????????????????????????????????????????? | | ???????????????????????????????????????????????? | | ???????????????????????????????????????????????? | | ???????????????????????????????????????????????? | | ???????????????????????????????????????????????? | | ???????????????????????????????????????????????? | | ???????????????????????????????????????????????? | | ????????????????????#######????????????????????? | | ???????????????????? #????????????????????? | | ???????????????????? #????????????????????? | | ?????????????????????""" ?????????????????????? | | ???????????????????# """ ?????????????????????? | | ???????????????????? """ ??????????????????????? | | ????????????????????? ??????????????????????? | | ???????????????########/######?????????????????? | | ?????????????# /@ +?????????????????? | | ?????????????# """ #l #?????????????????? | | ?????????????# "T" ! ?# ####+#############? | | ?????????????# # | | ?????????????# * /g w g | | ?????????????# """ # =% gg s " | | ???????????????""" ####+###g ######????? "%# | | ???????????????""" ]??# # g #?????????? "# | | ??????????????? ??#""" # #?????????? # | | ??????????????##+##/???#""" # #?????????# # | | ?????????????????? ????#""" # #?????????# # | | ?????????????????# ????#""" # ########### # | | ?????????????????#?????# # # ! # # | | ???????????????????????? # = # # # | | ?????????????????????????#####*%[# = # # | | ?????????????????????????????# # [ # # | | ?????????????????????????????# # """ / # | | ?????????????????????????????# + """ "" # # | | ?????????????????????????????# # """ S"" # # | | ?????????????????????????????# # "" # # | | ?????????????????????????????# ##### ###### # | | ?????????????????????????????# #???###????# # | | ????????????????????????????? #??????????# # | | ???????????????????????????? ???????????# / | | ??????????????????????????? ???????????# # | +----------------------------------------------------+ Best States ------------- Heat Dissipation 31 Energy Generation 10 Energy Capacity 250 Matter Stores 176 Matter Capacity 300 Sight Range 16 Robot Scan Range 14 Terrain Scan Range 16 Terrain Scan Density 110 Armor Coverage 225 Evasion (%) 40 Item Schematics ----------------- None Robot Schematics ------------------ None Fabricated ------------ Nothing Repaired ---------- Nothing Studied --------- None Alien Tech Used ----------------- None Achievements -------------- Omniscient Cartographer Challenges ------------ None Game ------ Seed RestorationPhasingPower Manual? 0 Play Time 00:14:54 Cumulative 12.3 hours Start 2026.07.13 @ 15:09:26 End 2026.07.13 @ 15:26:56 Sessions 1 Manual Loads 0 Difficulty Rogue Special Mode None Game No. 26 Rogue 26 Adventurer 0 Explorer 0 Win Type - Total 0 Types 0/0/0/0/0/0/0/0/0/0 Lore% 11 Gallery% 12 Achievement% 12 Wizard Run 0 Options --------- Layout 1 ASCII 0 Keyboard 0 Movement Mouse Keybinds 0 Fullscreen 1 Font 24/Smallcaps Map View 50x35 Zoom Use 0% Tactical HUD 1 Map Filters NONE Filters NONE Steam 1 RUN: 59dc8436-c1f1-4339-b066-d33d29a93d97